[Event "44th Chess Olympiad Women 2022"]
[Site "Chennai"]
[Date "2022.08.02"]
[Round "5.33"]
[White "Otazo Sanchez, Annyd Gabriela"]
[Black "Banda Natalie Katlo"]
[Result "1/2-1/2"]
[ECO "B13"]
[WhiteElo "1932"]
[BlackElo "1688"]
[Annotator "TA"]
[PlyCount "156"]
[EventDate "2022.07.29"]
[EventType "team-tourn"]
[EventCountry "IND"]
[SourceTitle "playchess.com"]
[Source "ChessBase"]
[SourceQuality "1"]
[WhiteTeam "Venezuela"]
[BlackTeam "Botswana"]
[WhiteTeamCountry "VEN"]
[BlackTeamCountry "BOT"]
[TimeControl "40/5400+30:1800+30"]

{[%evp 9,155,10,11,6,32,33,89,84,89,17,22,-8,-2,0,0,0,41,-13,0,-9,-19,-12,-8,-18,-7,0,70,83,360,339,352,320,241,-113,-120,-123,-102,-441,-444,-444,-442,-445,-435,-446,-446,-444,-439,-431,-397,-388,-371,-449,-458,-437,-422,-470,-470,-470,-468,-470,-468,-466,-464,-449,-445,-563,-549,-564,-562,-650,-637,-634,-617,-579,-698,-769,-564,-939,-948,-914,-895,-967,-967,-930,-894,-840,-840,-816,-762,-770,-675,-819,-514,-814,-811,-800,-784,-538,-437,-617,-744,-718,-602,-1618,-1648,-5635,-4664,-5712,-5887,-5314,-5318,-5051,-5051,-4485,-3155,-6967,-6633,-3573,-1275,-29973,-29961,-29980,-29981,-29981,-29982,-29981,-29982,-29985,-29980,-29980,-29981,-29981,-29982,-29981,0,0,0,0,0,0,0,0,0,0,0,0,0,0]} 1. e4 {[%emt 0:00:03]} c6 {[%emt 0:00:15]} 2. d4 {[%emt 0:00:12]} d5 {[%emt 0:00:10]} 3. exd5 {[%emt 0:00:12]} cxd5 {[%emt 0:00:07]} 4. Bd3 {[%emt 0:00:07]} Nf6 {[%emt 0:00:26]} 5. Bf4 {[%emt 0:00:22]} Bg4 {[%emt 0:02:55]} 6. Nf3 {[%emt 0:00:32] B13: Caro-Kann: Exchange Variation and Panov-Botvinnik Attack.} Bxf3 {[%emt 0:02:24]} 7. Qxf3 {[%emt 0:00:33] [#]} (7. gxf3 e6 $15) 7... Qb6 $146 {[%emt 0:00:54]} (7... Nc6 $14) ({Predecessor:} 7... e6 8. Nd2 Qb6 9. Nb3 Bd6 10. Qg3 Bxf4 11. Qxf4 Nbd7 12. c3 a6 13. O-O O-O {0-1 (26) Chuva Brito,A (1373)-Guerrero Cueva,J (399) Chess.com INT 2020}) 8. Nc3 $16 {[%emt 0:09:18] Active counter play! White is better.} Nc6 {[%emt 0:08:40]} 9. O-O {[%emt 0:18:02]} (9. Nxd5 $16 Nxd5 10. Qxd5) 9... Nxd4 $11 {[%emt 0:01:27]} 10. Qe3 {[%emt 0:00:38]} (10. Qh3 $5 {[%cal Rf4e3]}) 10... Nc6 $36 {[%emt 0:10:35][%cal Bd4c6,Bc6b4,Bb4c2][%mdl 2080] Black is pushing. Pair of Knights!} 11. Qxb6 {[%emt 0:02:27]} axb6 {[%emt 0:00:10]} 12. Nb5 {[%emt 0:00:13]} Kd7 {[%emt 0:01:09]} 13. Be3 {[%emt 0:17:28]} ({White should try} 13. a3 $14) 13... Nb4 {[%emt 0:02:53]} 14. Be2 {[%emt 0:06:56]} ({Avoid the trap} 14. Bxb6 $2 Nxd3 15. cxd3 Kc6 $19) 14... Nxc2 {[%emt 0:01:44]} 15. Rac1 {[%emt 0:00:06][%cal Ba1c1,Bc1c7,Bc7b7][%mdl 32]} Nxe3 {[%emt 0:00:20]} 16. Rc7+ {[%emt 0:00:12]} Kd8 {[%emt 0:01:44]} 17. fxe3 {[%emt 0:00:05]} Rxa2 {[%emt 0:02:44]} ({Better is} 17... g6 $11) 18. Rxb7 $14 {[%emt 0:06:34]} Rxb2 $2 {[%emt 0:00:48][%mdl 8192] [#]} (18... e6 $16) 19. Rc1 $1 {[%emt 0:09:00][%cal Oc1c7] Intending Rcc7! and mate.} Ne8 {[%emt 0:05:40] [#] Prevents Rcc7.} (19... Rxe2 {gets mated.} 20. Rcc7 Re1+ 21. Kf2) 20. Bg4 {[%emt 0:06:25][%cal Rb7b8]} e6 {[%emt 0:01:33] [#]} 21. Bxe6 $2 {[%emt 0:05:30]} fxe6 $17 {[%emt 0:02:34]} 22. Nd4 {[%emt 0:00:03][%cal Rd4e6] [#]} Bc5 $1 {[%emt 0:01:02]} (22... Nd6 23. Nxe6+ Ke8 24. Ra7 $11) 23. Nxe6+ $2 {[%emt 0:03:49][%mdl 8192]} (23. Rxc5 $17 {was the crucial defense.} bxc5 24. Nxe6+ Kc8 25. Rxb2) 23... Kc8 $19 {[%emt 0:00:18]} 24. Nxc5 {[%emt 0:00:06] [#]} Rb5 $1 {[%emt 0:03:10]} 25. Ra1 {[%emt 0:10:49][%cal Ra1a8]} Rxc5 {[%emt 0:01:33]} 26. Rxb6 {[%emt 0:00:44]} Nc7 {[%emt 0:01:51]} 27. Rf1 {[%emt 0:01:33]} Rb5 {[%emt 0:02:39]} 28. Rxb5 {[%emt 0:01:20]} Nxb5 {[%emt 0:00:19][%mdl 4096] Endgame KRN-KR} 29. Rf7 {[%emt 0:00:04]} Rg8 {[%emt 0:01:24]} 30. Kf2 {[%emt 0:00:14]} Nd6 {[%emt 0:00:46]} 31. Ra7 {[%emt 0:00:28] Ra8+ is the strong threat.} Rf8+ {[%emt 0:00:22]} 32. Ke2 {[%emt 0:00:29] aiming for Ra8+.} Rf7 {[%emt 0:00:30]} 33. Ra5 {[%emt 0:00:19]} Ne4 {[%emt 0:00:29]} 34. Kd3 {[%emt 0:00:16]} Rd7 {[%emt 0:01:00]} 35. Kd4 {[%emt 0:00:10]} Nf6 {[%emt 0:00:29]} 36. h3 {[%emt 0:00:12]} Kb7 {[%emt 0:00:47]} 37. g4 {[%emt 0:01:43]} h6 {[%emt 0:01:09]} 38. Ra3 {[%emt 0:01:20]} Re7 {[%emt 0:00:38]} 39. Rb3+ {[%emt 0:00:15]} Kc6 {[%emt 0:00:19]} 40. Rb8 {[%emt 0:01:00]} Re4+ {[%emt 0:00:17]} 41. Kd3 {[%emt 0:30:06]} Nxg4 {[%emt 0:30:36]} 42. hxg4 {[%emt 0:00:15]} Rxg4 {[%emt 0:00:05] KR-KR} 43. Ke2 {[%emt 0:00:00]} h5 {[%emt 0:00:00]} 44. Kf3 {[%emt 0:00:00]} g6 {[%emt 0:00:00]} 45. Rf8 {[%emt 0:00:00]} Kd6 {[%emt 0:00:00]} 46. Rh8 {[%emt 0:00:00]} Ke5 {[%emt 0:00:00]} 47. Re8+ {[%emt 0:00:00]} Kf6 {[%emt 0:00:00][%cal Og4e4]} 48. Rf8+ {[%emt 0:00:00]} Ke7 {[%emt 0:00:00]} 49. Rg8 {[%emt 0:00:00]} Kd7 {[%emt 0:00:00]} 50. Rg7+ {[%emt 0:00:00]} Kc6 {[%emt 0:00:00]} 51. Rg8 {[%emt 0:00:00]} (51. Ra7 $142 Rg1 52. Rh7) 51... Kc5 {[%emt 0:00:00]} 52. Rc8+ {[%emt 0:00:00]} Kb5 {[%emt 0:00:00]} 53. Rc7 {[%emt 0:00:00]} g5 {[%emt 0:00:00]} 54. Rh7 {[%emt 0:00:00]} (54. Rg7 $142 Kc4 55. Rc7+ Kb4 56. Rg7) 54... Rh4 {[%emt 0:00:00]} 55. Kg3 {[%emt 0:00:00]} Kc4 {[%emt 0:00:00] Strongly threatening ...Re4.} 56. Rd7 {[%emt 0:00:00]} Re4 {[%emt 0:00:00]} 57. Kf2 {[%emt 0:00:00]} h4 {[%emt 0:00:00]} 58. Rc7+ {[%emt 0:00:00]} Kd3 {[%emt 0:00:00]} 59. Ra7 {[%emt 0:02:06]} g4 {[%emt 0:00:00][%cal Bg5g4,Bg4g3][%mdl 32]} 60. Ra3+ {[%emt 0:02:06]} Kc4 {[%emt 0:00:00]} 61. Ra4+ {[%emt 0:00:07]} Kb5 {[%emt 0:00:00]} 62. Ra8 {[%emt 0:00:02]} g3+ {[%emt 0:00:00]} 63. Kf3 {[%emt 0:00:19]} Kc4 {[%emt 0:00:00]} (63... h3 $142 64. Kxg3 Rxe3+ 65. Kf2 d4) 64. Rd8 {[%emt 0:01:20]} Re7 {[%emt 0:00:00]} 65. Rh8 {[%emt 0:01:58]} Rf7+ {[%emt 0:00:00]} 66. Kg2 {[%emt 0:00:15]} Rf2+ {[%emt 0:00:00]} 67. Kg1 {[%emt 0:00:05]} Rh2 {[%emt 0:00:00]} 68. Rh5 {[%emt 0:01:23]} d4 {[%emt 0:00:00]} 69. exd4 {[%emt 0:00:22]} Kxd4 {[%emt 0:00:00]} 70. Rh8 {[%emt 0:00:11]} Ke4 {[%emt 0:00:00]} 71. Rf8 {[%emt 0:03:40]} h3 $2 {[%emt 0:00:00]} (71... Rc2 {mates} 72. Ra8 h3 73. Ra1 Kd3 74. Rd1+ Ke2 75. Rb1 Rd2 76. Rf1 Rd1 77. Rxd1 Kxd1 78. Kf1 Kd2 79. Kg1 Ke2 80. Kh1 Ke1 81. Kg1 g2 82. Kh2 Kf2 83. Kxh3 g1=Q 84. Kh4 Qg6 85. Kh3 Qh5#) 72. Rg8 {[%emt 0:00:58] The position is equal.} Rg2+ {[%emt 0:00:00]} 73. Kh1 {[%emt 0:00:16]} Kf3 {[%emt 0:00:00]} 74. Rf8+ {[%emt 0:00:10]} Ke2 {[%emt 0:00:00]} 75. Re8+ $1 {[%emt 0:00:02]} Kd3 {[%emt 0:00:00]} (75... Kf1 $5 76. Re1+ Kf2 77. Re2+ Kf1 78. Re1+ Kf2 79. Re2+ Kf3 80. Rxg2 hxg2+ 81. Kg1 Kg4 $11) 76. Rd8+ {[%emt 0:00:51]} Ke4 {[%emt 0:00:00]} (76... Kc2 $5 77. Rc8+ Kd3 78. Rd8+ Ke4 79. Re8+ Kf4 80. Rf8+ Ke5 81. Rf5+ Ke4 82. Re5+ Kf4 83. Rf5+ Ke4 84. Rf4+ Ke3 85. Rf3+ Ke4 86. Re3+ Kf4 87. Re4+ Kf3 88. Rf4+ Ke2 89. Re4+ Kf2 90. Re2+ Kf1 91. Re1+ Kf2 92. Re2+ Kf3 93. Rxg2 hxg2+ 94. Kg1 Kg4 $11) 77. Rd4+ {[%emt 0:00:30]} Ke5 {[%emt 0:00:00] ( -> ...Rh2+)} 78. Rd5+ {[%emt 0:00:11]} Kxd5 {[%emt 0:00:00] Black had all chances to win.  Weighted Error Value: White=0.65/Black=0.22 (precise)} 1/2-1/2

[Event "44th Chess Olympiad Women 2022"]
[Site "Chennai"]
[Date "2022.08.02"]
[Round "5.33"]
[White "Matute Escobar, Roxanny"]
[Black "Moshoboro Arona"]
[Result "1-0"]
[ECO "C02"]
[WhiteElo "1834"]
[BlackElo "1611"]
[Annotator "NA RC COMBH"]
[PlyCount "75"]
[EventDate "2022.07.29"]
[EventType "team-tourn"]
[EventCountry "IND"]
[SourceTitle "playchess.com"]
[Source "ChessBase"]
[SourceQuality "1"]
[WhiteTeam "Venezuela"]
[BlackTeam "Botswana"]
[WhiteTeamCountry "VEN"]
[BlackTeamCountry "BOT"]
[TimeControl "40/5400+30:1800+30"]

1. e4 {[%emt 0:00:05]} e6 {[%emt 0:00:07]} 2. d4 {[%emt 0:00:11]} d5 {[%emt 0:00:06]} 3. e5 {[%emt 0:00:18]} Bd7 {[%emt 0:00:12]} 4. Nf3 {[%emt 0:00:51]} a6 {[%emt 0:00:43]} 5. Bd3 {[%emt 0:01:41]} Bb5 {[%emt 0:00:33]} 6. O-O {[%emt 0:04:29]} Ne7 {[%emt 0:05:29]} 7. b3 {[%emt 0:12:15]} Bxd3 {[%emt 0:01:32]} 8. Qxd3 {[%emt 0:00:06]} Nf5 {[%emt 0:00:28]} 9. c4 {[%emt 0:01:15]} c6 {[%emt 0:17:23]} 10. Nc3 {[%emt 0:12:54]} Nd7 {[%emt 0:09:59]} 11. cxd5 {[%emt 0:02:05]} cxd5 {[%emt 0:01:53]} 12. Nxd5 {[%emt 0:00:00]} Nxe5 {[%emt 0:14:25]} 13. dxe5 {[%emt 0:00:00]} Qxd5 {[%emt 0:05:16]} 14. Qxd5 {[%emt 0:00:00]} exd5 {[%emt 0:00:08]} 15. Rd1 {[%emt 0:00:00]} Rd8 {[%emt 0:05:23]} 16. Bg5 {[%emt 0:00:00]} Be7 {[%emt 0:03:55]} 17. Rac1 {[%emt 0:00:27]} Bxg5 {[%emt 0:04:56]} 18. Nxg5 {[%emt 0:00:09]} h6 {[%emt 0:00:30]} 19. Nf3 {[%emt 0:00:23]} Ne7 {[%emt 0:06:14]} 20. Nd4 {[%emt 0:03:36]} Kd7 {[%emt 0:01:10]} 21. f4 {[%emt 0:05:18]} Rc8 {[%emt 0:01:25]} 22. f5 {[%emt 0:01:31]} Rxc1 {[%emt 0:03:55]} 23. Rxc1 {[%emt 0:00:06]} Nc6 {[%emt 0:00:42]} 24. Nf3 {[%emt 0:04:25]} Rd8 {[%emt 0:05:47]} 25. Kf2 {[%emt 0:03:48]} Nb4 {[%emt 0:03:24]} 26. Rd1 {[%emt 0:05:07]} Ke7 {[%emt 0:02:18]} 27. Rd2 {[%emt 0:01:28]} d4 {[%emt 0:02:13]} 28. Nxd4 {[%emt 0:03:04]} Nxa2 {[%emt 0:00:24]} 29. f6+ {[%emt 0:00:59]} Kf8 {[%emt 0:01:52]} 30. Ne6+ {[%emt 0:01:30]} fxe6 {[%emt 0:00:25]} 31. Rxd8+ {[%emt 0:00:06]} Kf7 {[%emt 0:00:12]} 32. Rd7+ {[%emt 0:00:08]} Kg6 {[%emt 0:00:25]} 33. Rxg7+ {[%emt 0:00:13]} Kf5 {[%emt 0:00:15]} 34. f7 {[%emt 0:00:07]} Kxe5 {[%emt 0:00:11]} 35. f8=Q {[%emt 0:00:08]} Kd5 {[%emt 0:02:17]} 36. Rd7+ {[%emt 0:00:34]} Ke5 {[%emt 0:00:22]} 37. Ke3 {[%emt 0:00:12]} b6 {[%emt 0:00:59]} 38. Qf4# {[%emt 0:00:05]} 1-0

[Event "44th Chess Olympiad Women 2022"]
[Site "Chennai"]
[Date "2022.08.02"]
[Round "5.33"]
[White "Besa, Masaiti"]
[Black "Varela La Madrid, Tilsia Carolina"]
[Result "0-1"]
[ECO "D02"]
[WhiteElo "1745"]
[BlackElo "2079"]
[Annotator "NA RC"]
[PlyCount "62"]
[EventDate "2022.07.29"]
[EventType "team-tourn"]
[EventCountry "IND"]
[SourceTitle "playchess.com"]
[Source "ChessBase"]
[SourceQuality "1"]
[WhiteTeam "Botswana"]
[BlackTeam "Venezuela"]
[WhiteTeamCountry "BOT"]
[BlackTeamCountry "VEN"]
[TimeControl "40/5400+30:1800+30"]

1. d4 {[%emt 0:00:29]} d5 {[%emt 0:00:07]} 2. Bf4 {[%emt 0:00:04]} Nf6 {[%emt 0:00:10]} 3. Nf3 {[%emt 0:00:27]} Bf5 {[%emt 0:00:14]} 4. e3 {[%emt 0:00:12]} e6 {[%emt 0:00:20]} 5. Nbd2 {[%emt 0:00:19]} Nbd7 {[%emt 0:00:19]} 6. c3 {[%emt 0:00:31]} c5 {[%emt 0:00:30]} 7. Ne5 {[%emt 0:00:12]} Qb6 {[%emt 0:00:53]} 8. Qc1 {[%emt 0:06:01]} Nxe5 {[%emt 0:01:41]} 9. Bxe5 {[%emt 0:00:20]} Nd7 {[%emt 0:00:12]} 10. Bg3 {[%emt 0:01:12]} Rc8 {[%emt 0:05:01]} 11. Nf3 {[%emt 0:00:15]} Be7 {[%emt 0:01:06]} 12. Be2 {[%emt 0:00:33]} O-O {[%emt 0:01:15]} 13. Nh4 {[%emt 0:00:53]} Bxh4 {[%emt 0:01:47]} 14. Bxh4 {[%emt 0:00:24]} e5 {[%emt 0:00:19]} 15. dxc5 {[%emt 0:01:45]} Nxc5 {[%emt 0:00:43]} 16. Qd2 {[%emt 0:00:30]} Ne4 {[%emt 0:01:41]} 17. Qc1 {[%emt 0:02:38]} Qh6 {[%emt 0:03:23]} 18. Be7 {[%emt 0:04:59]} Rfe8 {[%emt 0:00:17]} 19. Bb4 {[%emt 0:00:27]} Qg6 {[%emt 0:02:16]} 20. g4 {[%emt 0:04:47]} Bxg4 {[%emt 0:07:51]} 21. Rg1 {[%emt 0:03:15]} Qf6 {[%emt 0:00:08]} 22. Rxg4 {[%emt 0:01:19]} Qxf2+ {[%emt 0:00:09]} 23. Kd1 {[%emt 0:00:52]} Qxh2 {[%emt 0:00:10]} 24. Rxe4 {[%emt 0:46:35]} dxe4 {[%emt 0:00:12]} 25. c4 {[%emt 0:01:57]} Red8+ {[%emt 0:02:49]} 26. Bd2 {[%emt 0:02:03]} Rc7 {[%emt 0:01:06]} 27. Ke1 {[%emt 0:04:03]} Qg3+ {[%emt 0:01:32]} 28. Kd1 {[%emt 0:07:54]} Qxe3 {[%emt 0:00:59]} 29. Ke1 {[%emt 0:01:37]} Qg3+ {[%emt 0:00:20]} 30. Kd1 {[%emt 0:02:49]} e3 {[%emt 0:00:20]} 31. Qc3 {[%emt 0:01:49]} Rxd2+ {[%emt 0:00:27]} 0-1

[Event "44th Chess Olympiad Women 2022"]
[Site "Chennai"]
[Date "2022.08.02"]
[Round "5.33"]
[White "Otisitswe Ruth"]
[Black "Rovira Contreras, Tairu Manuela"]
[Result "0-1"]
[ECO "C56"]
[WhiteElo "1552"]
[BlackElo "2036"]
[Annotator "NA RC"]
[PlyCount "104"]
[EventDate "2022.07.29"]
[EventType "team-tourn"]
[EventCountry "IND"]
[SourceTitle "playchess.com"]
[Source "ChessBase"]
[SourceQuality "1"]
[WhiteTeam "Botswana"]
[BlackTeam "Venezuela"]
[WhiteTeamCountry "BOT"]
[BlackTeamCountry "VEN"]
[TimeControl "40/5400+30:1800+30"]

1. e4 {[%emt 0:00:06]} e5 {[%emt 0:00:11]} 2. Nf3 {[%emt 0:00:10]} Nc6 {[%emt 0:00:06]} 3. d4 {[%emt 0:00:16]} exd4 {[%emt 0:00:20]} 4. Bc4 {[%emt 0:00:07]} Nf6 {[%emt 0:02:52]} 5. e5 {[%emt 0:00:31]} d5 {[%emt 0:05:40]} 6. Bb5 {[%emt 0:00:34]} Ne4 {[%emt 0:00:14]} 7. Nxd4 {[%emt 0:00:51]} Bd7 {[%emt 0:00:32]} 8. Bxc6 {[%emt 0:00:20]} bxc6 {[%emt 0:00:09]} 9. O-O {[%emt 0:00:41]} Bc5 {[%emt 0:01:06]} 10. f3 {[%emt 0:01:09]} Ng5 {[%emt 0:01:03]} 11. f4 {[%emt 0:01:17]} Ne4 {[%emt 0:01:19]} 12. Be3 {[%emt 0:00:41]} Rb8 {[%emt 0:02:19]} 13. b3 {[%emt 0:02:14]} Qh4 {[%emt 0:03:47]} 14. Qe1 {[%emt 0:04:34]} Qh5 {[%emt 0:03:08]} 15. Nf3 {[%emt 0:07:15]} Bb6 {[%emt 0:07:44]} 16. c4 {[%emt 0:03:01]} O-O {[%emt 0:02:40]} 17. Nc3 {[%emt 0:02:31]} Ba5 {[%emt 0:01:57]} 18. Bd2 {[%emt 0:00:13]} Nxd2 {[%emt 0:02:24]} 19. Qxd2 {[%emt 0:00:11]} Rfd8 {[%emt 0:07:00]} 20. cxd5 {[%emt 0:04:03]} cxd5 {[%emt 0:05:53]} 21. Qb2 {[%emt 0:00:20]} Bc6 {[%emt 0:05:27]} 22. Nd4 {[%emt 0:15:55]} Bb6 {[%emt 0:02:24]} 23. Na4 {[%emt 0:08:55]} Bxa4 {[%emt 0:06:43]} 24. bxa4 {[%emt 0:00:16]} Qg6 {[%emt 0:04:40]} 25. Qd2 {[%emt 0:02:38]} Qe4 {[%emt 0:05:15]} 26. Rad1 {[%emt 0:05:07]} Bxd4+ {[%emt 0:14:51]} 27. Qxd4 {[%emt 0:05:15]} Qxd4+ {[%emt 0:01:57]} 28. Rxd4 {[%emt 0:00:07]} c5 {[%emt 0:00:21]} 29. Rd3 {[%emt 0:00:14]} Kf8 {[%emt 0:01:28]} 30. Rfd1 {[%emt 0:00:24]} d4 {[%emt 0:00:28]} 31. Rc1 {[%emt 0:00:41]} Rbc8 {[%emt 0:01:36]} 32. Rc4 {[%emt 0:00:28]} Ke7 {[%emt 0:00:24]} 33. Kf2 {[%emt 0:00:07]} Ke6 {[%emt 0:00:08]} 34. Rd1 {[%emt 0:01:19]} Kd5 {[%emt 0:00:19]} 35. Rdc1 {[%emt 0:00:55]} Re8 {[%emt 0:00:25]} 36. a5 {[%emt 0:02:49]} Rc6 {[%emt 0:02:09]} 37. a6 {[%emt 0:01:08]} Rb8 {[%emt 0:00:24]} 38. R1c2 {[%emt 0:02:10]} Rbb6 {[%emt 0:00:25]} 39. Ra4 {[%emt 0:01:31]} Rxa6 {[%emt 0:00:14]} 40. Rxa6 {[%emt 0:00:16]} Rxa6 {[%emt 0:00:06]} 41. Kf3 {[%emt 0:30:37]} d3 {[%emt 0:31:07]} 42. Rd2 {[%emt 0:00:15]} Kd4 {[%emt 0:00:07]} 43. f5 {[%emt 0:00:41]} Rb6 {[%emt 0:00:56]} 44. g4 {[%emt 0:00:26]} c4 {[%emt 0:00:07]} 45. h4 {[%emt 0:00:44]} c3 {[%emt 0:00:05]} 46. Rd1 {[%emt 0:00:33]} c2 {[%emt 0:00:11]} 47. Re1 {[%emt 0:00:21]} d2 {[%emt 0:00:25]} 48. Re4+ {[%emt 0:00:30]} Kd5 {[%emt 0:00:10]} 49. e6 {[%emt 0:00:22]} d1=Q+ {[%emt 0:00:14]} 50. Kf4 {[%emt 0:00:14]} c1=Q+ {[%emt 0:00:11]} 51. Kg3 {[%emt 0:00:15]} Qg1+ {[%emt 0:00:29]} 52. Kf3 {[%emt 0:00:10]} Qcf1# {[%emt 0:00:07]} 0-1

[Event "44th Chess Olympiad Women 2022"]
[Site "Chennai"]
[Date "2022.08.02"]
[Round "5.34"]
[White "Chaves, Jussara"]
[Black "Juarez Garcia, Daniela"]
[Result "1/2-1/2"]
[ECO "A03"]
[WhiteElo "1933"]
[BlackElo "1725"]
[Annotator "TA"]
[PlyCount "73"]
[EventDate "2022.07.29"]
[EventType "team-tourn"]
[EventCountry "IND"]
[SourceTitle "playchess.com"]
[Source "ChessBase"]
[SourceQuality "1"]
[WhiteTeam "Portugal"]
[BlackTeam "Guatemala"]
[WhiteTeamCountry "POR"]
[BlackTeamCountry "GUA"]
[TimeControl "40/5400+30:1800+30"]

{[%evp 9,73,-13,-11,-20,-15,-6,0,4,0,-7,20,-21,-8,-33,-14,-24,-6,-7,-2,-12,-10,-13,-5,-96,-87,-74,-15,-97,-100,-91,-34,-100,-41,-45,-28,-68,-66,-64,-55,-79,-52,-58,-48,-48,-32,-54,-49,-90,-56,-152,-44,-33,-20,-55,-58,-46,-58,-58,-31,-61,0,-22,0,-54,0,-28]} 1. b3 {[%emt 0:00:09]} d5 {[%emt 0:01:55]} 2. Bb2 {[%emt 0:00:47]} Nf6 {[%emt 0:00:46]} 3. f4 {[%emt 0:01:33]} g6 {[%emt 0:01:03]} 4. Nf3 {[%emt 0:00:24]} Bg7 {[%emt 0:02:30]} 5. e3 {[%emt 0:00:34]} c5 {[%emt 0:01:20]} 6. Be2 {[%emt 0:05:47] A03: Bird's Opening with 1...d5.} Nc6 {[%emt 0:04:51]} 7. Ne5 {[%emt 0:03:07]} O-O {[%emt 0:04:55]} 8. Nxc6 {[%emt 0:00:51]} bxc6 {[%emt 0:00:06]} 9. O-O {[%emt 0:05:53]} Nd7 {[%emt 0:06:28] [#]} 10. Qc1 $146 {[%emt 0:05:20]} ({Predecessor:} 10. Bxg7 Kxg7 11. Qe1 e6 12. Nc3 f5 13. Na4 Qe7 14. Qg3 Nb6 15. Nb2 c4 16. Rfb1 {1-0 (47) Ries,J (1986)-Amelang,A (2072) Germany 2019}) 10... e5 {[%emt 0:01:35]} 11. Nc3 {[%emt 0:05:57]} Qe7 {[%emt 0:11:21]} 12. Na4 {[%emt 0:11:45]} d4 {[%emt 0:07:35]} 13. exd4 {[%emt 0:07:02]} cxd4 {[%emt 0:04:18]} 14. Ba3 {[%emt 0:00:34]} c5 {[%emt 0:03:49]} 15. Bb5 {[%emt 0:08:01]} exf4 {[%emt 0:04:15][%cal Od4d3]} 16. Bxd7 {[%emt 0:00:36]} (16. Qe1 $11 Qg5 17. Qe4) 16... Qxd7 $17 {[%emt 0:00:04]} 17. Nxc5 {[%emt 0:02:20]} Qc6 {[%emt 0:02:54]} ({Better is} 17... Qc7 $17) 18. Nd3 {[%emt 0:03:37] [#]} (18. d3 $11 {remains equal.}) 18... Bb7 $1 {[%emt 0:01:03][%csl Gb7][%cal Rc6g2] A strong pair of Bishops.} 19. Rf2 {[%emt 0:00:17] [#]} (19. Nxf4 $2 Be5 $1 20. Rf2 (20. Bxf8 $2 Bxf4 21. Rf2 Rxf8 $19) 20... Bxf4 21. Bxf8 Rxf8 $19) 19... Rfc8 {[%emt 0:01:25]} (19... Rfe8 $1 $17) 20. Nc5 {[%emt 0:01:49]} (20. Nxf4 $15 a5 21. d3) 20... g5 {[%emt 0:06:01]} (20... d3 $1 $17 {[%cal Rd3c2]} 21. c3 Qb6) 21. d3 $15 {[%emt 0:01:52]} Re8 {[%emt 0:00:55]} 22. Ne4 {[%emt 0:02:39]} h6 {[%emt 0:04:54]} 23. Nd6 {[%emt 0:10:39]} Re5 $36 {[%emt 0:06:00][%mdl 2048] Black is pushing.} 24. Qd1 {[%emt 0:17:01]} Rd8 {[%emt 0:08:11]} 25. Nc4 {[%emt 0:00:00] [#]} Re3 {[%emt 0:03:04] Hoping for ...Qe6.} 26. Na5 $1 {[%emt 0:00:01]} Qb5 {[%emt 0:01:36]} 27. Nxb7 {[%emt 0:00:42]} Qxb7 {[%emt 0:00:04]} 28. Bc5 {[%emt 0:00:55]} Rde8 {[%emt 0:01:58]} 29. Qd2 {[%emt 0:00:26]} ({White should try} 29. Qg4 $15) 29... f3 {[%emt 0:01:04]} (29... Qd5 $17 30. Qb4 f3) 30. gxf3 {[%emt 0:01:30]} Rxf3 {[%emt 0:02:17]} 31. Rxf3 {[%emt 0:00:03]} Qxf3 {[%emt 0:00:04]} 32. Rf1 {[%emt 0:00:16]} Qg4+ {[%emt 0:02:34]} 33. Qg2 {[%emt 0:00:14]} Qd7 {[%emt 0:00:11]} ({But not} 33... Qxg2+ 34. Kxg2 Be5 35. a4 $14 (35. Bxa7 Ra8 $11)) 34. Qf2 {[%emt 0:01:35]} Qg4+ {[%emt 0:01:43]} 35. Qg2 {[%emt 0:00:03]} Qd7 {[%emt 0:00:05]} (35... Qh5 $5 {[%cal Re8e2]}) 36. Qf2 {[%emt 0:00:23] Against f5} Qg4+ {[%emt 0:00:06]} 37. Qg2 {[%emt 0:01:20] Weighted Error Value: White=0.22 (precise) /Black=0.25 (precise)} 1/2-1/2

[Event "44th Chess Olympiad Women 2022"]
[Site "Chennai"]
[Date "2022.08.02"]
[Round "5.34"]
[White "Mazariegos, Silvia Carolina"]
[Black "Pipiras, Filipa Fortuna"]
[Result "0-1"]
[ECO "D00"]
[WhiteElo "1851"]
[BlackElo "2139"]
[Annotator "NA RC"]
[PlyCount "48"]
[EventDate "2022.07.29"]
[EventType "team-tourn"]
[EventCountry "IND"]
[SourceTitle "playchess.com"]
[Source "ChessBase"]
[SourceQuality "1"]
[WhiteTeam "Guatemala"]
[BlackTeam "Portugal"]
[WhiteTeamCountry "GUA"]
[BlackTeamCountry "POR"]
[TimeControl "40/5400+30:1800+30"]

1. d4 {[%emt 0:00:07]} d5 {[%emt 0:00:24]} 2. Bf4 {[%emt 0:00:15]} c5 {[%emt 0:01:50]} 3. e3 {[%emt 0:00:20]} Nc6 {[%emt 0:01:05]} 4. c3 {[%emt 0:00:28]} Nf6 {[%emt 0:09:50]} 5. h3 {[%emt 0:09:41]} Bf5 {[%emt 0:04:12]} 6. Bd3 {[%emt 0:05:02]} e6 {[%emt 0:06:55]} 7. Bxf5 {[%emt 0:13:48]} exf5 {[%emt 0:02:06]} 8. dxc5 {[%emt 0:02:44]} Bxc5 {[%emt 0:00:48]} 9. Nd2 {[%emt 0:05:47]} Ne4 {[%emt 0:03:04]} 10. Nxe4 {[%emt 0:09:08]} fxe4 {[%emt 0:04:58]} 11. Qg4 {[%emt 0:01:57]} O-O {[%emt 0:14:15]} 12. Ne2 {[%emt 0:13:15]} f5 {[%emt 0:04:13]} 13. Qg3 {[%emt 0:00:19]} Qb6 {[%emt 0:03:58]} 14. O-O-O {[%emt 0:05:12]} Qa6 {[%emt 0:12:14]} 15. Rxd5 {[%emt 0:12:37]} Qxa2 {[%emt 0:08:26]} 16. Rhd1 {[%emt 0:02:54]} Na5 {[%emt 0:01:27]} 17. Rd7 {[%emt 0:06:56]} Rf7 {[%emt 0:00:42]} 18. Bh6 {[%emt 0:01:19]} Qa1+ {[%emt 0:01:08]} 19. Kc2 {[%emt 0:07:24]} Qa4+ {[%emt 0:00:13]} 20. Kc1 {[%emt 0:00:17]} Rxd7 {[%emt 0:00:23]} 21. Rxd7 {[%emt 0:00:16]} Qxd7 {[%emt 0:00:08]} 22. b4 {[%emt 0:00:16]} Nc4 {[%emt 0:00:59]} 23. Nd4 {[%emt 0:00:28]} Bxd4 {[%emt 0:00:08]} 24. exd4 {[%emt 0:00:09]} a5 {[%emt 0:00:35]} 0-1